[Event "December 12 Late 2023"]
[Site "https://www.chess.com"]
[Date "2023.12.12"]
[Round "3"]
[White "Zampronha, Wladimir Camilo"]
[Black "Chocenka, Dmitrijus"]
[Result "0-1"]
[Board "120"]
[TimeControl "180+1"]
[WhiteFideId "2103087"]
[BlackFideId "12802336"]
[WhiteElo "2368"]
[BlackElo "2483"]
[WhiteTeam "BRA"]
[BlackTeam "LTU"]
[WhiteClock "0:01:15"]
[BlackClock "0:01:11"]

1. e4 {[%clk 0:03:00]}  c5 {[%clk 0:03:00]} 2. Nf3 {[%clk 0:03:01]}  Nc6 {[%clk 0:03:00]} 3. d4 {[%clk 0:03:01]}  cxd4 {[%clk 0:03:00]} 4. Nxd4 {[%clk 0:03:02]}  e5 {[%clk 0:03:01]} 5. Nb5 {[%clk 0:03:02]}  d6 {[%clk 0:03:01]} 6. N1c3 {[%clk 0:02:59]}  a6 {[%clk 0:03:01]} 7. Na3 {[%clk 0:02:59]}  Be6 {[%clk 0:03:02]} 8. Nd5 {[%clk 0:02:59]}  Rb8 {[%clk 0:03:00]} 9. c4 {[%clk 0:02:57]}  Be7 {[%clk 0:02:53]} 10. Bd3 {[%clk 0:02:56]}  Nf6 {[%clk 0:02:51]} 11. O-O {[%clk 0:02:55]}  O-O {[%clk 0:02:51]} 12. Be3 {[%clk 0:02:55]}  Nd7 {[%clk 0:02:51]} 13. Qd2 {[%clk 0:02:48]}  h6 {[%clk 0:02:50]} 14. Rfd1 {[%clk 0:02:46]}  Bg5 {[%clk 0:02:48]} 15. Bxg5 {[%clk 0:02:43]}  hxg5 {[%clk 0:02:46]} 16. Ne3 {[%clk 0:02:34]}  Nc5 {[%clk 0:02:39]} 17. f3 {[%clk 0:02:33]}  Qf6 {[%clk 0:02:11]} 18. Bf1 {[%clk 0:02:32]}  Rfd8 {[%clk 0:02:11]} 19. Rac1 {[%clk 0:02:25]}  Nd4 {[%clk 0:02:04]} 20. Nac2 {[%clk 0:02:20]}  Nxc2 {[%clk 0:02:03]} 21. Rxc2 {[%clk 0:02:19]}  b5 {[%clk 0:01:55]} 22. b3 {[%clk 0:02:13]}  b4 {[%clk 0:01:48]} 23. Qf2 {[%clk 0:02:09]}  a5 {[%clk 0:01:45]} 24. Rcd2 {[%clk 0:02:09]}  Rb6 {[%clk 0:01:42]} 25. Nd5 {[%clk 0:02:01]}  Bxd5 {[%clk 0:01:41]} 26. Rxd5 {[%clk 0:02:02]}  Rc8 {[%clk 0:01:37]} 27. Qd2 {[%clk 0:01:59]}  Rcc6 {[%clk 0:01:37]} 28. Qe3 {[%clk 0:01:47]}  g6 {[%clk 0:01:35]} 29. g3 {[%clk 0:01:46]}  Kg7 {[%clk 0:01:35]} 30. Bh3 {[%clk 0:01:46]}  Qe7 {[%clk 0:01:31]} 31. R1d2 {[%clk 0:01:43]}  a4 {[%clk 0:01:31]} 32. Rd1 {[%clk 0:01:41]}  axb3 {[%clk 0:01:31]} 33. axb3 {[%clk 0:01:40]}  Ra6 {[%clk 0:01:28]} 34. R1d2 {[%clk 0:01:38]}  Ra3 {[%clk 0:01:27]} 35. Rb2 {[%clk 0:01:37]}  Qa7 {[%clk 0:01:15]} 36. Qxg5 {[%clk 0:01:15]}  Nxe4+ {[%clk 0:01:11]} 0-1

[Event "December 12 Late 2023"]
[Site "https://www.chess.com"]
[Date "2023.12.12"]
[Round "3"]
[White "Serban, Cristian-Stefan"]
[Black "De Souza, Cristiano Gomes"]
[Result "1-0"]
[Board "122"]
[TimeControl "180+1"]
[WhiteFideId "1241443"]
[BlackFideId "2151758"]
[WhiteElo "2462"]
[BlackElo "2229"]
[WhiteTeam "ROU"]
[BlackTeam "BRA"]
[WhiteClock "0:00:09"]
[BlackClock "0:00:01"]

1. d4 {[%clk 0:03:00]}  Nf6 {[%clk 0:02:59]} 2. Bf4 {[%clk 0:03:01]}  g6 {[%clk 0:02:59]} 3. Nc3 {[%clk 0:03:01]}  d6 {[%clk 0:02:59]} 4. e4 {[%clk 0:03:01]}  c6 {[%clk 0:02:59]} 5. Qd2 {[%clk 0:03:00]}  b5 {[%clk 0:02:59]} 6. f3 {[%clk 0:02:55]}  h6 {[%clk 0:02:56]} 7. h4 {[%clk 0:02:53]}  Bg7 {[%clk 0:02:55]} 8. Nge2 {[%clk 0:02:35]}  a5 {[%clk 0:02:54]} 9. Ng3 {[%clk 0:02:32]}  Ba6 {[%clk 0:02:46]} 10. a3 {[%clk 0:02:19]}  b4 {[%clk 0:02:39]} 11. axb4 {[%clk 0:02:15]}  axb4 {[%clk 0:02:39]} 12. Nd1 {[%clk 0:02:04]}  Qb6 {[%clk 0:02:34]} 13. h5 {[%clk 0:02:01]}  g5 {[%clk 0:02:33]} 14. Be3 {[%clk 0:02:02]}  Nbd7 {[%clk 0:02:22]} 15. Nf5 {[%clk 0:01:55]}  Bf8 {[%clk 0:02:20]} 16. Bxa6 {[%clk 0:01:50]}  Rxa6 {[%clk 0:02:19]} 17. Rxa6 {[%clk 0:01:51]}  Qxa6 {[%clk 0:02:18]} 18. Qxb4 {[%clk 0:01:52]}  c5 {[%clk 0:02:02]} 19. dxc5 {[%clk 0:01:46]}  dxc5 {[%clk 0:01:57]} 20. Qd2 {[%clk 0:01:41]}  e6 {[%clk 0:01:55]} 21. Ng3 {[%clk 0:01:36]}  Bd6 {[%clk 0:01:51]} 22. Ne2 {[%clk 0:01:29]}  Ne5 {[%clk 0:01:47]} 23. b3 {[%clk 0:01:27]}  c4 {[%clk 0:01:46]} 24. O-O {[%clk 0:01:06]}  Ke7 {[%clk 0:01:45]} 25. Nb2 {[%clk 0:00:57]}  cxb3 {[%clk 0:01:43]} 26. cxb3 {[%clk 0:00:58]}  Rd8 {[%clk 0:01:41]} 27. Nd4 {[%clk 0:00:35]}  Nxh5 {[%clk 0:01:39]} 28. Qe2 {[%clk 0:00:34]}  Qxe2 {[%clk 0:01:36]} 29. Nxe2 {[%clk 0:00:34]}  Rb8 {[%clk 0:01:28]} 30. Nd4 {[%clk 0:00:34]}  Nf4 {[%clk 0:01:23]} 31. Ra1 {[%clk 0:00:30]}  Rb7 {[%clk 0:01:21]} 32. Nc4 {[%clk 0:00:27]}  Nxc4 {[%clk 0:01:19]} 33. bxc4 {[%clk 0:00:28]}  Bc5 {[%clk 0:01:17]} 34. Nc6+ {[%clk 0:00:27]}  Kd7 {[%clk 0:01:16]} 35. Ne5+ {[%clk 0:00:19]}  Kd6 {[%clk 0:01:16]} 36. Bxc5+ {[%clk 0:00:17]}  Kxc5 {[%clk 0:01:11]} 37. Ra5+ {[%clk 0:00:16]}  Kd4 {[%clk 0:01:11]} 38. g3 {[%clk 0:00:08]}  Rb1+ {[%clk 0:01:09]} 39. Kf2 {[%clk 0:00:07]}  Rb2+ {[%clk 0:01:09]} 40. Kf1 {[%clk 0:00:07]}  Nh3 {[%clk 0:01:04]} 41. Nxf7 {[%clk 0:00:07]}  Ke3 {[%clk 0:00:59]} 42. Ra3+ {[%clk 0:00:07]}  Kd4 {[%clk 0:00:59]} 43. Nxh6 {[%clk 0:00:07]}  Kxc4 {[%clk 0:00:55]} 44. Ng4 {[%clk 0:00:05]}  Kd4 {[%clk 0:00:54]} 45. Ra4+ {[%clk 0:00:05]}  Kc3 {[%clk 0:00:52]} 46. Ra3+ {[%clk 0:00:05]}  Kd4 {[%clk 0:00:52]} 47. Ra6 {[%clk 0:00:05]}  Kd3 {[%clk 0:00:41]} 48. Rd6+ {[%clk 0:00:05]}  Kc4 {[%clk 0:00:37]} 49. Rxe6 {[%clk 0:00:06]}  Kd4 {[%clk 0:00:35]} 50. Rd6+ {[%clk 0:00:06]}  Kc5 {[%clk 0:00:34]} 51. Rd3 {[%clk 0:00:06]}  Kc4 {[%clk 0:00:34]} 52. Rd8 {[%clk 0:00:06]}  Rb1+ {[%clk 0:00:33]} 53. Kg2 {[%clk 0:00:06]}  Ng1 {[%clk 0:00:31]} 54. Ne3+ {[%clk 0:00:04]}  Kc5 {[%clk 0:00:30]} 55. Rd5+ {[%clk 0:00:04]}  Kc6 {[%clk 0:00:30]} 56. Rxg5 {[%clk 0:00:04]}  Ne2 {[%clk 0:00:30]} 57. Nf5 {[%clk 0:00:03]}  Nc3 {[%clk 0:00:27]} 58. g4 {[%clk 0:00:03]}  Ne2 {[%clk 0:00:23]} 59. Rg6+ {[%clk 0:00:03]}  Kd7 {[%clk 0:00:22]} 60. Kf2 {[%clk 0:00:04]}  Nf4 {[%clk 0:00:22]} 61. Rd6+ {[%clk 0:00:04]}  Kc7 {[%clk 0:00:21]} 62. Ke3 {[%clk 0:00:05]}  Ng2+ {[%clk 0:00:20]} 63. Kf2 {[%clk 0:00:05]}  Rb2+ {[%clk 0:00:20]} 64. Kg3 {[%clk 0:00:05]}  Ne1 {[%clk 0:00:18]} 65. Rd1 {[%clk 0:00:04]}  Rg2+ {[%clk 0:00:14]} 66. Kf4 {[%clk 0:00:04]}  Rg1 {[%clk 0:00:13]} 67. g5 {[%clk 0:00:03]}  Ng2+ {[%clk 0:00:10]} 68. Kg3 {[%clk 0:00:04]}  Rxd1 {[%clk 0:00:10]} 69. Kxg2 {[%clk 0:00:04]}  Kd7 {[%clk 0:00:10]} 70. Kg3 {[%clk 0:00:05]}  Ke6 {[%clk 0:00:11]} 71. Kf4 {[%clk 0:00:05]}  Rg1 {[%clk 0:00:09]} 72. Ne3 {[%clk 0:00:05]}  Kf7 {[%clk 0:00:08]} 73. Kf5 {[%clk 0:00:05]}  Kg7 {[%clk 0:00:08]} 74. f4 {[%clk 0:00:05]}  Re1 {[%clk 0:00:08]} 75. Ng4 {[%clk 0:00:06]}  Ra1 {[%clk 0:00:07]} 76. e5 {[%clk 0:00:06]}  Ra8 {[%clk 0:00:06]} 77. Nf6 {[%clk 0:00:06]}  Rf8 {[%clk 0:00:05]} 78. e6 {[%clk 0:00:07]}  Ra8 {[%clk 0:00:05]} 79. e7 {[%clk 0:00:06]}  Kf7 {[%clk 0:00:04]} 80. e8=Q+ {[%clk 0:00:07]}  Rxe8 {[%clk 0:00:03]} 81. Nxe8 {[%clk 0:00:08]}  Kxe8 {[%clk 0:00:01]} 82. Kg6 {[%clk 0:00:09]} 1-0

[Event "December 12 Late 2023"]
[Site "https://www.chess.com"]
[Date "2023.12.12"]
[Round "3"]
[White "Urbina Perez, Juan Antonio"]
[Black "Demina, Marya"]
[Result "1/2-1/2"]
[Board "124"]
[TimeControl "180+1"]
[WhiteFideId "2217368"]
[BlackFideId "4195671"]
[WhiteElo "2451"]
[BlackElo "2143"]
[WhiteTeam "ESP"]
[BlackTeam "RUS"]
[WhiteClock "0:00:22"]
[BlackClock "0:00:32"]

1. d4 {[%clk 0:02:58]}  Nf6 {[%clk 0:02:59]} 2. c4 {[%clk 0:02:57]}  c5 {[%clk 0:02:59]} 3. d5 {[%clk 0:02:56]}  b5 {[%clk 0:02:59]} 4. cxb5 {[%clk 0:02:57]}  a6 {[%clk 0:02:59]} 5. e3 {[%clk 0:02:57]}  axb5 {[%clk 0:02:56]} 6. Bxb5 {[%clk 0:02:55]}  Qa5+ {[%clk 0:02:57]} 7. Nc3 {[%clk 0:02:54]}  Ba6 {[%clk 0:02:55]} 8. Bxa6 {[%clk 0:02:54]}  Nxa6 {[%clk 0:02:55]} 9. Ne2 {[%clk 0:02:52]}  d6 {[%clk 0:02:50]} 10. O-O {[%clk 0:02:52]}  g6 {[%clk 0:02:50]} 11. Bd2 {[%clk 0:02:47]}  Bg7 {[%clk 0:02:50]} 12. Ne4 {[%clk 0:02:39]}  Qb6 {[%clk 0:02:34]} 13. Nxf6+ {[%clk 0:02:39]}  Bxf6 {[%clk 0:02:34]} 14. Bc3 {[%clk 0:02:39]}  Bxc3 {[%clk 0:02:33]} 15. bxc3 {[%clk 0:02:40]}  c4 {[%clk 0:02:13]} 16. Qa4+ {[%clk 0:02:37]}  Kf8 {[%clk 0:02:12]} 17. Qxc4 {[%clk 0:02:35]}  Nc5 {[%clk 0:02:10]} 18. Qd4 {[%clk 0:02:31]}  f6 {[%clk 0:02:04]} 19. h4 {[%clk 0:02:28]}  Kf7 {[%clk 0:02:02]} 20. Rfb1 {[%clk 0:02:25]}  Qc7 {[%clk 0:02:00]} 21. h5 {[%clk 0:02:12]}  Rhb8 {[%clk 0:01:52]} 22. Nf4 {[%clk 0:01:39]}  Rxb1+ {[%clk 0:01:43]} 23. Rxb1 {[%clk 0:01:40]}  Rxa2 {[%clk 0:01:31]} 24. hxg6+ {[%clk 0:01:36]}  hxg6 {[%clk 0:01:30]} 25. g4 {[%clk 0:01:32]}  Qc8 {[%clk 0:01:21]} 26. Ng2 {[%clk 0:01:25]}  Ra4 {[%clk 0:01:16]} 27. c4 {[%clk 0:01:24]}  Nd7 {[%clk 0:01:16]} 28. Qf4 {[%clk 0:01:14]}  Rxc4 {[%clk 0:01:02]} 29. Qh6 {[%clk 0:01:12]}  Nf8 {[%clk 0:00:58]} 30. f3 {[%clk 0:00:58]}  Rc1+ {[%clk 0:00:56]} 31. Rxc1 {[%clk 0:00:57]}  Qxc1+ {[%clk 0:00:57]} 32. Kh2 {[%clk 0:00:57]}  Qd2 {[%clk 0:00:55]} 33. Kg3 {[%clk 0:00:51]}  Qxd5 {[%clk 0:00:54]} 34. Nf4 {[%clk 0:00:38]}  Qe5 {[%clk 0:00:53]} 35. Kf2 {[%clk 0:00:38]}  d5 {[%clk 0:00:48]} 36. Qh2 {[%clk 0:00:27]}  Qb2+ {[%clk 0:00:46]} 37. Kg3 {[%clk 0:00:27]}  Qe5 {[%clk 0:00:38]} 38. Kf2 {[%clk 0:00:21]}  d4 {[%clk 0:00:34]} 39. exd4 {[%clk 0:00:22]}  Qxd4+ {[%clk 0:00:34]} 40. Kg3 {[%clk 0:00:23]}  Qe5 {[%clk 0:00:35]} 41. Kf2 {[%clk 0:00:22]}  Qd4+ {[%clk 0:00:35]} 42. Kg3 {[%clk 0:00:22]}  Qe5 {[%clk 0:00:35]} 43. Kf2 {[%clk 0:00:22]}  Qb2+ {[%clk 0:00:35]} 44. Kg3 {[%clk 0:00:21]}  Qxh2+ {[%clk 0:00:35]} 45. Kxh2 {[%clk 0:00:22]}  e5 {[%clk 0:00:34]} 46. Nd3 {[%clk 0:00:21]}  Ne6 {[%clk 0:00:34]} 47. Kg3 {[%clk 0:00:21]}  g5 {[%clk 0:00:34]} 48. Nf2 {[%clk 0:00:20]}  Nd4 {[%clk 0:00:33]} 49. Ne4 {[%clk 0:00:20]}  Ke6 {[%clk 0:00:33]} 50. Nc5+ {[%clk 0:00:20]}  Kf7 {[%clk 0:00:33]} 51. Ne4 {[%clk 0:00:20]}  Ne6 {[%clk 0:00:33]} 52. Nd6+ {[%clk 0:00:20]}  Kg6 {[%clk 0:00:32]} 53. Nf5 {[%clk 0:00:21]}  Nf4 {[%clk 0:00:32]} 54. Ne7+ {[%clk 0:00:21]}  Kf7 {[%clk 0:00:32]} 55. Nf5 {[%clk 0:00:21]}  Ke6 {[%clk 0:00:32]} 56. Ng7+ {[%clk 0:00:21]}  Kf7 {[%clk 0:00:32]} 57. Nf5 {[%clk 0:00:21]}  Ke6 {[%clk 0:00:32]} 58. Ng7+ {[%clk 0:00:21]}  Kf7 {[%clk 0:00:32]} 59. Nf5 {[%clk 0:00:22]} 1/2-1/2

[Event "December 12 Late 2023"]
[Site "https://www.chess.com"]
[Date "2023.12.12"]
[Round "3"]
[White "Kleiman, Jake"]
[Black "Hernandez Jimenez, Alexander Andres"]
[Result "1/2-1/2"]
[Board "125"]
[TimeControl "180+1"]
[WhiteFideId "2020041"]
[BlackFideId "3900452"]
[WhiteElo "2626"]
[BlackElo "2290"]
[WhiteTeam "USA"]
[BlackTeam "VEN"]
[WhiteClock "0:01:06"]
[BlackClock "0:00:02"]

1. e4 {[%clk 0:03:00]}  c5 {[%clk 0:02:55]} 2. Nf3 {[%clk 0:03:00]}  d6 {[%clk 0:02:55]} 3. d4 {[%clk 0:03:00]}  cxd4 {[%clk 0:02:54]} 4. Nxd4 {[%clk 0:03:01]}  Nf6 {[%clk 0:02:55]} 5. Nc3 {[%clk 0:03:01]}  a6 {[%clk 0:02:55]} 6. Bg5 {[%clk 0:03:02]}  e6 {[%clk 0:02:54]} 7. f4 {[%clk 0:03:02]}  Be7 {[%clk 0:02:53]} 8. Qf3 {[%clk 0:03:01]}  Nbd7 {[%clk 0:02:52]} 9. O-O-O {[%clk 0:03:01]}  Qc7 {[%clk 0:02:51]} 10. g4 {[%clk 0:03:01]}  b5 {[%clk 0:02:49]} 11. Bxf6 {[%clk 0:03:01]}  Nxf6 {[%clk 0:02:48]} 12. g5 {[%clk 0:03:00]}  Nd7 {[%clk 0:02:48]} 13. f5 {[%clk 0:03:00]}  Ne5 {[%clk 0:02:46]} 14. Qe2 {[%clk 0:02:53]}  Bd7 {[%clk 0:02:37]} 15. Bh3 {[%clk 0:02:49]}  b4 {[%clk 0:02:21]} 16. fxe6 {[%clk 0:02:47]}  Bxg5+ {[%clk 0:02:03]} 17. Kb1 {[%clk 0:02:46]}  fxe6 {[%clk 0:02:02]} 18. Rhf1 {[%clk 0:02:31]}  O-O-O {[%clk 0:01:44]} 19. Qxa6+ {[%clk 0:02:29]}  Qb7 {[%clk 0:01:43]} 20. Qxb7+ {[%clk 0:02:27]}  Kxb7 {[%clk 0:01:43]} 21. Nce2 {[%clk 0:02:26]}  Nc4 {[%clk 0:01:34]} 22. Rf7 {[%clk 0:02:22]}  Bf6 {[%clk 0:01:22]} 23. Nxe6 {[%clk 0:02:15]}  Ne5 {[%clk 0:01:01]} 24. Nxd8+ {[%clk 0:02:13]}  Rxd8 {[%clk 0:01:01]} 25. Rxd7+ {[%clk 0:02:05]}  Nxd7 {[%clk 0:01:01]} 26. Rxd6 {[%clk 0:02:04]}  Kc7 {[%clk 0:00:58]} 27. Rxd7+ {[%clk 0:02:04]}  Rxd7 {[%clk 0:00:58]} 28. Bxd7 {[%clk 0:02:05]}  Kxd7 {[%clk 0:00:59]} 29. c3 {[%clk 0:02:03]}  Be5 {[%clk 0:00:50]} 30. h3 {[%clk 0:02:02]}  bxc3 {[%clk 0:00:31]} 31. bxc3 {[%clk 0:02:02]}  g5 {[%clk 0:00:30]} 32. Kc2 {[%clk 0:02:02]}  h5 {[%clk 0:00:30]} 33. Kd3 {[%clk 0:02:03]}  g4 {[%clk 0:00:31]} 34. hxg4 {[%clk 0:02:03]}  hxg4 {[%clk 0:00:25]} 35. Kc4 {[%clk 0:01:59]}  g3 {[%clk 0:00:24]} 36. Kd5 {[%clk 0:01:55]}  Bb8 {[%clk 0:00:20]} 37. c4 {[%clk 0:01:53]}  g2 {[%clk 0:00:19]} 38. c5 {[%clk 0:01:48]}  Bg3 {[%clk 0:00:10]} 39. e5 {[%clk 0:01:43]}  Kc7 {[%clk 0:00:07]} 40. c6 {[%clk 0:01:36]}  Bh4 {[%clk 0:00:06]} 41. a4 {[%clk 0:01:33]}  Be7 {[%clk 0:00:04]} 42. a5 {[%clk 0:01:33]}  Bb4 {[%clk 0:00:04]} 43. a6 {[%clk 0:01:33]}  Kb6 {[%clk 0:00:04]} 44. Kd4 {[%clk 0:01:23]}  Kxa6 {[%clk 0:00:04]} 45. Kc4 {[%clk 0:01:21]}  Bf8 {[%clk 0:00:03]} 46. Kd5 {[%clk 0:01:21]}  Kb6 {[%clk 0:00:03]} 47. Ng1 {[%clk 0:01:20]}  Kc7 {[%clk 0:00:03]} 48. Nf3 {[%clk 0:01:18]}  Be7 {[%clk 0:00:03]} 49. Ng1 {[%clk 0:01:16]}  Bh4 {[%clk 0:00:03]} 50. Nf3 {[%clk 0:01:16]}  Bd8 {[%clk 0:00:04]} 51. Kc5 {[%clk 0:01:12]}  Be7+ {[%clk 0:00:03]} 52. Kd5 {[%clk 0:01:12]}  Bd8 {[%clk 0:00:04]} 53. Kc5 {[%clk 0:01:07]}  Be7+ {[%clk 0:00:04]} 54. Kb5 {[%clk 0:01:08]}  Bd8 {[%clk 0:00:04]} 55. Kc4 {[%clk 0:01:07]}  Kxc6 {[%clk 0:00:03]} 56. Kd4 {[%clk 0:01:06]}  Bc7 {[%clk 0:00:03]} 57. Ke4 {[%clk 0:01:05]}  Bxe5 {[%clk 0:00:04]} 58. Kxe5 {[%clk 0:01:05]}  Kd7 {[%clk 0:00:04]} 59. Kf4 {[%clk 0:01:06]}  g1=Q {[%clk 0:00:02]} 60. Nxg1 {[%clk 0:01:06]} 1/2-1/2

[Event "December 12 Late 2023"]
[Site "https://www.chess.com"]
[Date "2023.12.12"]
[Round "3"]
[White "Saravana, Krishnan P."]
[Black "Nechitaylo, Nikita"]
[Result "1-0"]
[Board "126"]
[TimeControl "180+1"]
[WhiteFideId "5018382"]
[BlackFideId "34138161"]
[WhiteElo "2618"]
[BlackElo "2285"]
[WhiteTeam "IND"]
[BlackTeam "UKR"]
[WhiteClock "0:01:42"]
[BlackClock "0:00:19"]

1. Nf3 {[%clk 0:02:59]}  c5 {[%clk 0:03:00]} 2. e4 {[%clk 0:02:57]}  Nc6 {[%clk 0:03:00]} 3. Bb5 {[%clk 0:02:56]}  g6 {[%clk 0:03:00]} 4. Bxc6 {[%clk 0:02:56]}  dxc6 {[%clk 0:03:01]} 5. d3 {[%clk 0:02:56]}  Qc7 {[%clk 0:03:01]} 6. Nc3 {[%clk 0:02:53]}  e5 {[%clk 0:03:01]} 7. h3 {[%clk 0:02:53]}  Be7 {[%clk 0:03:01]} 8. Be3 {[%clk 0:02:52]}  Nf6 {[%clk 0:03:00]} 9. Qd2 {[%clk 0:02:50]}  O-O {[%clk 0:03:00]} 10. a3 {[%clk 0:02:47]}  Nh5 {[%clk 0:02:59]} 11. Ne2 {[%clk 0:02:46]}  Ng7 {[%clk 0:02:54]} 12. g4 {[%clk 0:02:43]}  Ne6 {[%clk 0:02:52]} 13. h4 {[%clk 0:02:40]}  Nd4 {[%clk 0:02:52]} 14. Nfxd4 {[%clk 0:02:34]}  cxd4 {[%clk 0:02:53]} 15. Bh6 {[%clk 0:02:34]}  Bxg4 {[%clk 0:02:03]} 16. Bxf8 {[%clk 0:02:26]}  Bxf8 {[%clk 0:01:57]} 17. O-O-O {[%clk 0:02:24]}  b5 {[%clk 0:01:54]} 18. Rdg1 {[%clk 0:02:21]}  h5 {[%clk 0:01:51]} 19. Kb1 {[%clk 0:02:20]}  a5 {[%clk 0:01:50]} 20. Rxg4 {[%clk 0:02:06]}  hxg4 {[%clk 0:01:49]} 21. h5 {[%clk 0:02:06]}  b4 {[%clk 0:01:38]} 22. a4 {[%clk 0:02:05]}  c5 {[%clk 0:01:34]} 23. b3 {[%clk 0:02:04]}  Qc6 {[%clk 0:01:30]} 24. Ng3 {[%clk 0:02:03]}  Bg7 {[%clk 0:01:15]} 25. Qg5 {[%clk 0:02:00]}  Qf6 {[%clk 0:01:06]} 26. Qxg4 {[%clk 0:02:00]}  Qc6 {[%clk 0:00:48]} 27. Rg1 {[%clk 0:01:49]}  Kf8 {[%clk 0:00:30]} 28. Nf5 {[%clk 0:01:45]}  c4 {[%clk 0:00:25]} 29. dxc4 {[%clk 0:01:43]}  Qxe4 {[%clk 0:00:23]} 30. Qxe4 {[%clk 0:01:43]}  gxf5 {[%clk 0:00:19]} 31. Qxa8+ {[%clk 0:01:42]} 1-0

[Event "December 12 Late 2023"]
[Site "https://www.chess.com"]
[Date "2023.12.12"]
[Round "3"]
[White "Iskusnyh, Sergei"]
[Black "Player, Edmund C"]
[Result "1-0"]
[Board "127"]
[TimeControl "180+1"]
[WhiteFideId "4120027"]
[BlackFideId "406520"]
[WhiteElo "2580"]
[BlackElo "2281"]
[WhiteTeam "RUS"]
[BlackTeam "ENG"]
[WhiteClock "0:00:48"]
[BlackClock "0:00:07"]

1. d4 {[%clk 0:02:59]}  Nf6 {[%clk 0:02:56]} 2. c4 {[%clk 0:02:59]}  e6 {[%clk 0:02:55]} 3. g3 {[%clk 0:02:57]}  Bb4+ {[%clk 0:02:50]} 4. Nd2 {[%clk 0:02:56]}  d5 {[%clk 0:02:44]} 5. Bg2 {[%clk 0:02:53]}  c6 {[%clk 0:02:40]} 6. Nf3 {[%clk 0:02:50]}  dxc4 {[%clk 0:02:34]} 7. O-O {[%clk 0:02:40]}  c3 {[%clk 0:02:31]} 8. bxc3 {[%clk 0:02:37]}  Bxc3 {[%clk 0:02:31]} 9. Rb1 {[%clk 0:02:36]}  Bxd4 {[%clk 0:02:14]} 10. Nxd4 {[%clk 0:02:25]}  Qxd4 {[%clk 0:02:13]} 11. Ba3 {[%clk 0:02:25]}  Nd5 {[%clk 0:02:03]} 12. Qc2 {[%clk 0:02:18]}  Qc3 {[%clk 0:01:47]} 13. Qb2 {[%clk 0:02:05]}  Qxb2 {[%clk 0:01:43]} 14. Rxb2 {[%clk 0:02:05]}  Nb6 {[%clk 0:01:08]} 15. Rc1 {[%clk 0:01:57]}  f5 {[%clk 0:01:05]} 16. e4 {[%clk 0:01:43]}  Kf7 {[%clk 0:00:52]} 17. Nf3 {[%clk 0:01:43]}  N8d7 {[%clk 0:00:45]} 18. Ng5+ {[%clk 0:01:40]}  Kf6 {[%clk 0:00:40]} 19. f4 {[%clk 0:01:25]}  Ne5 {[%clk 0:00:19]} 20. Rxb6 {[%clk 0:01:02]}  Nd3 {[%clk 0:00:14]} 21. Rc3 {[%clk 0:00:50]}  axb6 {[%clk 0:00:13]} 22. Rxd3 {[%clk 0:00:50]}  h6 {[%clk 0:00:12]} 23. Bb2+ {[%clk 0:00:49]}  Kg6 {[%clk 0:00:11]} 24. exf5+ {[%clk 0:00:49]}  exf5 {[%clk 0:00:10]} 25. Rd6+ {[%clk 0:00:48]}  Kh5 {[%clk 0:00:07]} 26. Bf3# {[%clk 0:00:48]} 1-0

[Event "December 12 Late 2023"]
[Site "https://www.chess.com"]
[Date "2023.12.12"]
[Round "3"]
[White "Minina, Veronika"]
[Black "Yashmetov, Mikhail"]
[Result "0-1"]
[Board "132"]
[TimeControl "180+1"]
[WhiteFideId "4174780"]
[BlackFideId "24198900"]
[WhiteElo "2254"]
[BlackElo "2476"]
[WhiteTeam "RUS"]
[BlackTeam "RUS"]
[WhiteClock "0:00:02"]
[BlackClock "0:01:43"]

1. Nf3 {[%clk 0:02:54]}  Nf6 {[%clk 0:02:56]} 2. g3 {[%clk 0:02:55]}  g6 {[%clk 0:02:56]} 3. Bg2 {[%clk 0:02:56]}  Bg7 {[%clk 0:02:56]} 4. c4 {[%clk 0:02:55]}  O-O {[%clk 0:02:57]} 5. O-O {[%clk 0:02:56]}  c6 {[%clk 0:02:58]} 6. Nc3 {[%clk 0:02:56]}  d5 {[%clk 0:02:58]} 7. d4 {[%clk 0:02:47]}  dxc4 {[%clk 0:02:57]} 8. Ne5 {[%clk 0:02:46]}  Ng4 {[%clk 0:02:56]} 9. Nxc4 {[%clk 0:02:23]}  Qxd4 {[%clk 0:02:52]} 10. Qb3 {[%clk 0:02:16]}  b5 {[%clk 0:02:36]} 11. Na5 {[%clk 0:02:14]}  Be6 {[%clk 0:02:35]} 12. Qc2 {[%clk 0:02:11]}  Qb6 {[%clk 0:02:33]} 13. b4 {[%clk 0:01:55]}  Na6 {[%clk 0:02:31]} 14. a3 {[%clk 0:01:53]}  Rac8 {[%clk 0:02:29]} 15. Bb2 {[%clk 0:01:49]}  c5 {[%clk 0:02:27]} 16. Nd5 {[%clk 0:01:26]}  Bxd5 {[%clk 0:02:24]} 17. Bxd5 {[%clk 0:01:27]}  cxb4 {[%clk 0:02:22]} 18. Nc6 {[%clk 0:01:12]}  Rxc6 {[%clk 0:02:19]} 19. Bxc6 {[%clk 0:01:11]}  Bxb2 {[%clk 0:02:19]} 20. Qxb2 {[%clk 0:01:01]}  Qxc6 {[%clk 0:02:18]} 21. axb4 {[%clk 0:01:01]}  Nc7 {[%clk 0:02:11]} 22. Rfc1 {[%clk 0:01:00]}  Qb7 {[%clk 0:02:09]} 23. Qd4 {[%clk 0:00:59]}  Nf6 {[%clk 0:01:47]} 24. Rxa7 {[%clk 0:00:59]}  Ne6 {[%clk 0:01:48]} 25. Qe3 {[%clk 0:00:36]}  Qd5 {[%clk 0:01:46]} 26. Rxe7 {[%clk 0:00:32]}  Ng5 {[%clk 0:01:44]} 27. h4 {[%clk 0:00:18]}  Nh3+ {[%clk 0:01:44]} 28. Kh2 {[%clk 0:00:19]}  Ng4+ {[%clk 0:01:44]} 29. Kxh3 {[%clk 0:00:16]}  Nxe3 {[%clk 0:01:45]} 30. Rxe3 {[%clk 0:00:17]}  Qd7+ {[%clk 0:01:43]} 31. Kh2 {[%clk 0:00:16]}  Re8 {[%clk 0:01:44]} 32. Rd3 {[%clk 0:00:13]}  Qe7 {[%clk 0:01:43]} 33. e3 {[%clk 0:00:13]}  Qxb4 {[%clk 0:01:42]} 34. Rc7 {[%clk 0:00:12]}  Qb2 {[%clk 0:01:41]} 35. Kg2 {[%clk 0:00:13]}  b4 {[%clk 0:01:42]} 36. Rdd7 {[%clk 0:00:12]}  Rf8 {[%clk 0:01:42]} 37. h5 {[%clk 0:00:11]}  b3 {[%clk 0:01:42]} 38. hxg6 {[%clk 0:00:02]}  hxg6 {[%clk 0:01:43]} 0-1